bitfinex/quotes_BTCUSD_20251114
["timestamp","ask_amount","ask_price","bid_price","bid_amount"]
[1763136728266,0.05813039,96610.0,96597.0,0.07367942]
[1763136728527,0.02025137,96609.0,96597.0,0.07367942]
[1763136728739,0.02554062,96612.0,96597.0,0.07367942]
[1763136728942,0.01940837,96611.0,96610.0,0.0093615]
[1763136729140,0.323,96608.0,96600.0,0.0093615]
[1763136729341,0.02587804,96607.0,96606.0,0.10479654]
[1763136729571,0.001,96612.0,96606.0,0.10479654]
[1763136729778,0.06792,96624.0,96620.0,0.0093615]
[1763136730547,0.02587375,96623.0,96620.0,0.0093615]
[1763136730983,0.03127188,96623.0,96620.0,0.0093615]
[1763136731191,0.05362,96621.0,96607.0,0.07367942]
[1763136731395,0.05362,96616.0,96610.0,0.0093615]
[1763136731522,0.06792,96615.0,96610.0,0.0093615]
[1763136731723,0.00029598,96613.0,96610.0,0.0093615]
[1763136731930,0.02587643,96613.0,96610.0,0.0093615]
[1763136732126,0.0258767,96612.0,96610.0,0.0093615]
[1763136732683,0.53002219,96608.0,96607.0,0.07367942]
[1763136732827,0.58364219,96608.0,96607.0,0.07367942]
[1763136733027,0.53003719,96601.0,96600.0,0.00013568]
[1763136733228,0.68140719,96601.0,96600.0,0.00013568]
[1763136733442,0.20708801,96578.0,96570.0,0.0093615]
[1763136733682,0.06788,96577.0,96570.0,0.0093615]
[1763136733854,0.06801561,96577.0,96570.0,0.0093615]
[1763136734056,0.06801561,96577.0,96571.0,0.01091]
[1763136734254,0.06788,96576.0,96571.0,0.01091]
[1763136734476,0.00013561,96577.0,96571.0,0.01091]
[1763136734477,0.06788,96575.0,96571.0,0.01091]
[1763136735140,0.00013561,96577.0,96572.0,0.13797654]
[1763136735337,0.00013561,96577.0,96573.0,0.01671274]
[1763136735973,0.00539813,96576.0,96573.0,0.01671274]
[1763136736578,0.00539813,96576.0,96572.0,0.13797654]
[1763136736898,0.00539813,96576.0,96572.0,0.10479654]
[1763136737338,0.00539813,96576.0,96573.0,0.01671293]
[1763136737743,0.00539813,96576.0,96572.0,0.10479654]
[1763136737952,0.05362,96573.0,96570.0,0.0093615]
[1763136738105,0.05362,96571.0,96568.0,0.0013502]
[1763136738315,0.05362,96569.0,96568.0,0.0013502]
[1763136738521,0.37662,96569.0,96568.0,0.0013502]
[1763136740006,0.323,96566.0,96554.0,0.00998]
[1763136740262,0.06792,96565.0,96560.0,0.0093615]
[1763136741468,0.323,96564.0,96560.0,0.0093615]
[1763136741712,0.03875,96571.0,96560.0,0.0093615]
[1763136741713,0.06792,96563.0,96560.0,0.0093615]
[1763136741962,0.06792,96562.0,96560.0,0.0093615]
[1763136742574,0.00404793,96561.0,96560.0,0.0093615]
[1763136743547,0.00404793,96561.0,96553.0,0.00998]
[1763136743771,0.07196793,96561.0,96560.0,0.07367942]
[1763136743967,0.00404793,96561.0,96560.0,0.07367942]
[1763136744286,0.00404793,96561.0,96553.0,0.0267013]
[1763136744287,0.00404793,96561.0,96554.0,0.07367942]
[1763136744840,0.00404793,96561.0,96555.0,0.01672204]
[1763136745054,0.00404793,96561.0,96555.0,0.04990204]
[1763136745602,0.00404793,96561.0,96559.0,0.00024236]
[1763136746797,0.00404793,96561.0,96560.0,0.10685942]
[1763136747018,0.00404793,96561.0,96560.0,0.12357951]
[1763136747264,0.00404793,96561.0,96560.0,0.09039951]
[1763136747451,0.00404793,96561.0,96560.0,0.41672009]
[1763136747681,0.00404793,96561.0,96560.0,0.4]
[1763136748484,0.00404793,96561.0,96560.0,0.001]
[1763136748885,0.00404793,96561.0,96559.0,0.00024236]
[1763136749513,0.00404793,96561.0,96560.0,0.001]
[1763136749817,0.00404793,96561.0,96559.0,0.00024236]
[1763136750459,0.2597351,96560.0,96559.0,0.00024236]
[1763136750627,0.5827351,96560.0,96559.0,0.00024236]
[1763136750837,0.66226458,96560.0,96559.0,0.00024236]
[1763136750992,0.20716597,96541.0,96513.0,0.02994]
[1763136751194,0.03794,96538.0,96520.0,0.36601026]
[1763136751417,0.06792,96543.0,96540.0,0.0093615]
[1763136751618,0.05107562,96543.0,96522.0,0.03018]
[1763136751781,0.20716456,96542.0,96540.0,0.0093615]
[1763136751976,0.05107562,96543.0,96516.0,0.01091]
[1763136751977,0.05107562,96543.0,96520.0,0.36601026]
[1763136752227,0.05107562,96543.0,96537.0,0.10493217]
[1763136753027,0.05107562,96543.0,96540.0,0.0093615]
[1763136753429,0.00404793,96542.0,96540.0,0.0093615]
[1763136753631,0.00404793,96542.0,96537.0,0.10493217]
[1763136754237,0.00404793,96542.0,96538.0,0.01673152]
[1763136754806,0.00404793,96542.0,96538.0,0.03018]
[1763136755013,0.00404793,96542.0,96537.0,0.10493217]
[1763136755348,0.00404793,96542.0,96540.0,0.0093615]
[1763136756153,0.00404793,96542.0,96537.0,0.13511217]
[1763136756354,0.00404793,96542.0,96537.0,0.10493217]
[1763136756561,0.00404793,96542.0,96540.0,0.0093615]
[1763136757186,0.00404793,96542.0,96537.0,0.10493217]
[1763136757518,0.00404793,96542.0,96540.0,0.0093615]
[1763136757863,0.00404793,96542.0,96537.0,0.10493217]
[1763136758068,0.00404793,96542.0,96541.0,0.01927]
[1763136761320,0.00404793,96542.0,96541.0,0.09294942]
[1763136762111,0.00404793,96542.0,96541.0,0.09343425]
[1763136762674,0.05665793,96542.0,96541.0,0.07416425]
[1763136762888,0.33174165,96542.0,96541.0,0.07416425]
[1763136763091,0.65474165,96542.0,96541.0,0.07416425]
[1763136763331,0.65474165,96542.0,96541.0,0.00048483]
[1763136763740,0.44757793,96542.0,96541.0,0.00048483]
[1763136764744,0.44857793,96542.0,96541.0,0.00048483]
[1763136765314,0.00504793,96542.0,96541.0,0.00048483]
[1763136766211,0.00404793,96542.0,96541.0,0.00048483]
[1763136768446,0.02589251,96553.0,96541.0,0.00048483]
[1763136768597,0.02589251,96553.0,96550.0,0.0093615]
[1763136769032,0.02589251,96553.0,96537.0,0.00013563]
[1763136769033,0.05261,96551.0,96537.0,0.00013563]
[1763136769244,0.02589331,96550.0,96540.0,0.0093615]
[1763136769425,0.06792,96554.0,96540.0,0.0093615]
[1763136769631,0.08375491,96553.0,96550.0,0.0093615]
[1763136769951,0.02589278,96552.0,96550.0,0.0093615]
[1763136770168,0.001,96553.0,96550.0,0.0093615]
[1763136770169,0.01432141,96553.0,96550.0,0.0093615]
[1763136770374,0.02490765,96552.0,96550.0,0.0093615]
[1763136770780,0.05261,96551.0,96550.0,0.0093615]
[1763136771100,0.05261,96551.0,96537.0,0.00013563]
[1763136771101,0.20716404,96542.0,96537.0,0.00013563]
[1763136771272,0.05261,96538.0,96537.0,0.00013563]
[1763136772057,0.00404793,96540.0,96537.0,0.00013563]
[1763136772258,0.06792,96539.0,96537.0,0.00013563]
[1763136774121,0.06792,96540.0,96537.0,0.00013563]
[1763136774478,0.00350922,96539.0,96537.0,0.00013563]
[1763136776124,0.60867883,96538.0,96537.0,0.00013563]
[1763136776340,0.5827823,96538.0,96537.0,0.00013563]
[1763136776660,0.5827423,96538.0,96537.0,0.00013563]
[1763136776943,0.44353,96538.0,96537.0,0.00013563]
[1763136777609,0.52098813,96538.0,96537.0,0.00013563]
[1763136777825,0.52198813,96538.0,96537.0,0.00013563]
[1763136778212,0.52098813,96538.0,96537.0,0.00013563]
[1763136778647,0.52198813,96538.0,96537.0,0.00013563]
[1763136779050,0.52098813,96538.0,96537.0,0.00013563]
[1763136779293,0.45506813,96538.0,96537.0,0.00013563]
[1763136779452,0.32637359,96537.0,96520.0,0.0093615]
[1763136779676,0.32637359,96537.0,96530.0,0.0093615]
[1763136779917,0.09381707,96536.0,96530.0,0.0093615]
[1763136780115,0.09381707,96536.0,96530.0,0.00960397]
[1763136780363,0.36641874,96530.0,96520.0,0.00045308]
[1763136780579,0.250649,96511.0,96510.0,0.0004]
[1763136780788,0.690729,96511.0,96510.0,0.00053566]
[1763136781858,0.691729,96511.0,96510.0,0.00053566]
[1763136782061,0.64831026,96511.0,96510.0,0.00053566]
[1763136782319,0.58039026,96511.0,96510.0,0.00053566]
[1763136782555,0.72738056,96511.0,96510.0,0.00053566]
[1763136782753,0.5201503,96511.0,96510.0,0.00053566]
[1763136782956,0.32583793,96510.0,96490.0,0.0004]
[1763136783165,0.32583793,96510.0,96500.0,0.00993105]
[1763136783369,0.00283793,96510.0,96500.0,0.00993105]
[1763136783594,0.00283793,96510.0,96501.0,0.10479654]
[1763136783814,0.00283793,96510.0,96509.0,0.02528]
[1763136785699,0.00283793,96510.0,96509.0,0.02728]
[1763136786466,0.00283793,96510.0,96509.0,0.002]
[1763136787179,0.00283793,96510.0,96509.0,0.001]
[1763136787624,0.00283793,96510.0,96503.0,0.02528]
[1763136788523,0.00283793,96510.0,96504.0,0.0153667]
[1763136788791,0.00283793,96510.0,96505.0,0.06792]
[1763136789071,0.00283793,96510.0,96506.0,0.01674902]
[1763136789643,0.00283793,96510.0,96507.0,0.02328]
[1763136789872,0.00283793,96510.0,96507.0,0.04002816]
[1763136790159,0.02589761,96534.0,96530.0,0.00993105]
[1763136790386,0.03637,96536.0,96516.0,0.02328]
[1763136790599,0.02589734,96535.0,96518.0,0.10479654]
[1763136790812,0.20718732,96531.0,96530.0,0.00993105]
[1763136791027,0.06982,96535.0,96520.0,0.00993105]
[1763136791237,0.20719239,96529.0,96520.0,0.00993105]
[1763136791455,0.09571761,96534.0,96520.0,0.00993105]
[1763136791456,0.04624,96521.0,96520.0,0.00993105]
[1763136791676,0.04624,96521.0,96504.0,0.001]
[1763136791893,0.04624,96519.0,96510.0,0.00993105]
[1763136792112,0.0259019,96518.0,96510.0,0.00993105]
[1763136792334,0.01708328,96518.0,96502.0,0.01674703]
[1763136792534,0.01708328,96518.0,96501.0,0.10479654]
[1763136793272,0.323,96522.0,96520.0,0.00993105]
[1763136793482,0.02331832,96521.0,96520.0,0.00993105]
[1763136793872,0.06792,96523.0,96520.0,0.00993105]
[1763136794074,0.06792,96523.0,96502.0,0.01674467]
[1763136794075,0.323,96537.0,96502.0,0.04002467]
[1763136794284,0.06982,96538.0,96502.0,0.04002467]
[1763136794285,0.323,96533.0,96530.0,0.00993105]
[1763136795024,0.00045215,96535.0,96520.0,0.61443964]
[1763136795241,0.00045215,96535.0,96528.0,0.10479654]
[1763136795581,0.001,96533.0,96528.0,0.10479654]
[1763136795777,0.001,96533.0,96528.0,0.12807654]
[1763136795778,0.002,96533.0,96528.0,0.12807654]
[1763136796003,0.001,96533.0,96528.0,0.10479654]
[1763136796176,0.00283793,96534.0,96528.0,0.10479654]
[1763136796602,0.00283793,96534.0,96529.0,0.02328]
[1763136796801,0.00283793,96534.0,96530.0,0.01]
[1763136797144,0.00118916,96558.0,96530.0,0.01]
[1763136797145,0.00118916,96558.0,96540.0,0.4]
[1763136797268,0.00118916,96558.0,96557.0,0.12807654]
[1763136797471,0.00118916,96558.0,96557.0,0.19599654]
[1763136797714,0.00118916,96558.0,96557.0,0.53913528]
[1763136798774,0.00118916,96558.0,96557.0,0.93913528]
[1763136798984,0.00118916,96558.0,96557.0,0.94113528]
[1763136799183,0.00118916,96558.0,96557.0,0.94313528]
[1763136799390,0.00118916,96558.0,96557.0,0.94113528]
[1763136799641,0.00118916,96558.0,96557.0,0.79164218]
[1763136800019,0.00118916,96558.0,96557.0,0.78964218]
[1763136800343,0.00118916,96558.0,96557.0,0.79064218]
[1763136800998,0.00118916,96558.0,96557.0,0.78864218]
[1763136801394,0.00118916,96558.0,96557.0,0.79064218]
[1763136801599,0.00118916,96558.0,96557.0,0.78964218]
[1763136801850,0.00118916,96558.0,96557.0,0.78764218]
[1763136802195,0.00118916,96558.0,96557.0,0.78964218]
[1763136802395,0.02588045,96598.0,96570.0,0.4]
[1763136802708,0.00013566,96598.0,96591.0,0.10479654]
[1763136802864,0.00013566,96598.0,96597.0,0.02328]
[1763136803068,0.00013566,96598.0,96592.0,0.02328]
[1763136803444,0.00094214,96593.0,96592.0,0.02328]
[1763136803649,0.00094214,96593.0,96592.0,0.34628]
[1763136803865,0.00094214,96593.0,96592.0,0.323]
[1763136804235,0.00094214,96593.0,96592.0,0.36641874]
[1763136804636,0.00094214,96593.0,96592.0,0.51663674]
[1763136805065,0.00094214,96593.0,96592.0,0.91663674]
[1763136805293,0.00094214,96593.0,96592.0,0.91963674]
[1763136805711,0.00094214,96593.0,96592.0,0.91663674]
[1763136806050,0.00094214,96593.0,96592.0,0.77141874]
[1763136806324,0.00094214,96593.0,96592.0,1.02044374]
[1763136806484,0.00094214,96593.0,96592.0,1.02244374]
[1763136808523,0.0002,96640.0,96630.0,0.00993105]
[1763136808732,0.00065263,96640.0,96639.0,0.12687654]
[1763136808949,0.00065263,96640.0,96630.0,0.07781105]
[1763136809232,0.00065263,96640.0,96630.0,0.69225069]
[1763136810713,0.00065263,96640.0,96630.0,0.07781105]
[1763136810934,0.00065263,96640.0,96630.0,0.07881105]
[1763136811786,0.00065263,96640.0,96630.0,0.07781105]
[1763136813201,0.00065263,96640.0,96630.0,0.00993105]
[1763136814184,0.00102232,96631.0,96624.0,0.06784]
[1763136814412,0.00065263,96640.0,96630.0,0.00993105]
[1763136814548,0.00065263,96640.0,96633.0,0.02208]
[1763136814750,0.00065263,96640.0,96630.0,0.00993105]
[1763136815005,0.00065263,96640.0,96639.0,0.12687654]
[1763136815607,0.00065263,96640.0,96639.0,0.50479654]
[1763136816628,0.00065263,96640.0,96639.0,0.50579654]
[1763136817054,0.00065263,96640.0,96639.0,0.10579654]
[1763136817599,0.00065263,96640.0,96639.0,0.1224743]
[1763136817822,0.00065263,96640.0,96639.0,0.1214743]
[1763136819183,0.00065263,96640.0,96639.0,0.1224743]
[1763136819434,0.00065263,96640.0,96639.0,0.1445543]
[1763136819642,0.00065263,96640.0,96639.0,0.1435543]
[1763136819810,0.00065263,96640.0,96639.0,0.1214743]
[1763136820008,0.00191695,96640.0,96639.0,0.10579654]
[1763136821907,0.00191695,96640.0,96639.0,0.001]
[1763136822312,0.05064695,96640.0,96639.0,0.001]
[1763136822509,0.05064695,96640.0,96624.0,0.07038934]
[1763136822729,0.04938263,96640.0,96630.0,0.00993105]
[1763136822936,0.00065263,96640.0,96630.0,0.00993105]
[1763136824113,0.20760743,96640.0,96630.0,0.00993105]
[1763136824314,0.00065263,96640.0,96630.0,0.00993105]
[1763136824790,0.20695776,96639.0,96624.0,0.07038934]
[1763136825088,0.20760676,96640.0,96630.0,0.00993105]
[1763136825253,0.20696811,96634.0,96624.0,0.07038934]
[1763136825455,0.20696811,96634.0,96600.0,0.2]
[1763136825456,0.20697476,96631.0,96630.0,0.00993105]
[1763136825637,0.29079005,96623.0,96620.0,0.00993105]
[1763136825835,0.00065263,96640.0,96606.0,0.06784]
[1763136825836,0.3929,96639.0,96610.0,0.61443964]
[1763136826173,0.00065263,96640.0,96623.0,0.01668377]
[1763136826393,0.06784,96639.0,96623.0,0.01668377]
[1763136826603,0.06784,96639.0,96620.0,0.61443964]
[1763136827017,0.06784,96639.0,96630.0,0.00993105]
[1763136827227,0.06784,96639.0,96623.0,0.07038934]
[1763136827847,0.20696038,96637.0,96623.0,0.07038934]
[1763136828276,0.00083405,96624.0,96623.0,0.07038934]
[1763136831099,0.00083405,96624.0,96623.0,0.08707566]
[1763136831869,0.00083405,96624.0,96623.0,0.07038934]
[1763136835330,0.00083405,96624.0,96623.0,0.08707566]
[1763136835564,0.00083405,96624.0,96623.0,0.07038934]
[1763136840462,0.00083405,96624.0,96623.0,0.08707566]
[1763136841222,0.04724405,96624.0,96620.0,0.00993105]
[1763136841413,0.04641,96624.0,96620.0,0.00993105]
[1763136841775,0.04641,96621.0,96620.0,0.00993105]
[1763136842185,0.20698789,96625.0,96620.0,0.00993105]
[1763136842393,0.20698326,96627.0,96620.0,0.00993105]
[1763136842592,0.25340433,96621.0,96620.0,0.00993105]
[1763136843227,0.32120433,96621.0,96620.0,0.00993105]
[1763136843745,0.32120433,96621.0,96611.0,0.10479654]
[1763136843746,0.32120648,96621.0,96611.0,0.10479654]
[1763136844098,0.20701576,96611.0,96570.0,0.2]
[1763136844272,0.04641,96597.0,96590.0,0.01]
[1763136844572,0.04641,96591.0,96582.0,0.01681]
[1763136844726,0.25347093,96590.0,96582.0,0.01681]
[1763136844926,0.20706319,96589.0,96582.0,0.01681]
[1763136845272,0.06809,96597.0,96582.0,0.01681]
[1763136845273,0.0678,96598.0,96582.0,0.01694566]
[1763136845477,0.03507,96599.0,96582.0,0.01694566]
[1763136845478,0.0678,96597.0,96588.0,0.36578185]
[1763136845900,0.0678,96597.0,96591.0,0.001]
[1763136846283,0.0678,96597.0,96583.0,0.01670308]
[1763136846489,0.0678,96597.0,96582.0,0.01694566]
[1763136846705,0.27484664,96597.0,96582.0,0.01694566]
[1763136846910,0.03507,96599.0,96582.0,0.01694566]
[1763136847087,0.0678,96596.0,96582.0,0.01694566]
[1763136847854,0.04641,96583.0,96582.0,0.00013566]
[1763136848074,0.13589,96595.0,96582.0,0.00013566]
[1763136848267,0.13589,96595.0,96590.0,0.01]
[1763136848466,0.0678,96595.0,96590.0,0.01]
[1763136848693,0.03507,96599.0,96585.0,0.36578185]
[1763136848900,0.0678,96598.0,96586.0,0.01670483]
[1763136849507,0.0678,96598.0,96582.0,0.00013566]
[1763136849508,0.0678,96598.0,96582.0,0.01684049]
[1763136849712,0.06784,96598.0,96582.0,0.01684049]
[1763136850629,0.06784,96598.0,96582.0,0.00013566]
[1763136850849,0.06784,96598.0,96582.0,0.01684123]
[1763136852207,0.06784,96598.0,96582.0,0.00013566]
[1763136852408,0.06784,96598.0,96582.0,0.01684123]
[1763136852815,0.06784,96598.0,96588.0,0.36578185]
[1763136853165,0.0002422,96602.0,96597.0,0.01673]
[1763136853374,0.0002422,96602.0,96598.0,0.01673]
[1763136853584,0.0002422,96602.0,96598.0,0.03342935]
[1763136853759,0.0002422,96602.0,96599.0,0.08711934]
[1763136854078,0.0002422,96602.0,96600.0,0.01669864]
[1763136854256,0.0002422,96602.0,96599.0,0.07038934]
[1763136855030,0.0002422,96602.0,96600.0,0.08038934]
[1763136855872,0.0002422,96602.0,96594.0,0.0166995]
[1763136855873,0.0002422,96602.0,96601.0,0.08457]
[1763136856349,0.0002422,96602.0,96601.0,0.06784]
[1763136856566,0.0002422,96602.0,96599.0,0.06784]
[1763136856732,0.0002422,96602.0,96593.0,0.10479654]
[1763136856733,0.0002422,96602.0,96600.0,0.01]
[1763136856976,0.0002422,96602.0,96593.0,0.10479654]
[1763136857184,0.0690822,96602.0,96590.0,0.01]
[1763136857355,0.0002422,96602.0,96591.0,0.12152654]
[1763136857590,0.0002422,96602.0,96601.0,0.01673]
[1763136858857,0.0002422,96602.0,96601.0,0.01773]
[1763136859055,0.0002422,96602.0,96601.0,0.001]
[1763136859823,0.0002422,96602.0,96601.0,0.01773]
[1763136860225,0.0002422,96602.0,96601.0,0.01673]
[1763136860627,6.198e-05,96602.0,96601.0,0.01773]
[1763136861045,6.198e-05,96602.0,96601.0,0.01673]
[1763136861239,6.198e-05,96602.0,96598.0,0.06784]
[1763136861444,6.198e-05,96602.0,96601.0,0.001]
[1763136862011,6.198e-05,96602.0,96599.0,0.01669845]
[1763136862322,6.198e-05,96602.0,96598.0,0.06784]
[1763136862945,6.198e-05,96602.0,96592.0,0.36578185]
[1763136863182,6.198e-05,96602.0,96601.0,0.01673]
[1763136863390,0.04445198,96602.0,96592.0,0.0678]
[1763136863594,0.04445198,96602.0,96600.0,0.01]
[1763136863812,0.13530267,96602.0,96600.0,0.01]
[1763136864020,0.25142893,96601.0,96600.0,0.01]
[1763136864480,0.04439,96601.0,96590.0,0.01]
[1763136864740,0.04439,96592.0,96590.0,0.01]
[1763136864904,0.0678,96593.0,96590.0,0.01]
[1763136865481,0.0678,96593.0,96580.0,0.36578185]
[1763136865724,0.20705758,96592.0,96590.0,0.01]
[1763136865921,0.04439,96591.0,96590.0,0.01]
[1763136866303,0.25144862,96591.0,96590.0,0.01]
[1763136866508,0.04439,96591.0,96580.0,0.01]
[1763136867127,0.03419,96593.0,96574.0,0.01670822]
[1763136867328,0.0678,96591.0,96590.0,0.01]
[1763136867729,0.11219,96591.0,96580.0,0.36578185]
[1763136867931,0.11219,96591.0,96590.0,0.01]
[1763136868573,0.0678,96591.0,96590.0,0.01]
[1763136868745,0.0678,96593.0,96582.0,0.01684105]
[1763136868942,0.0678,96593.0,96583.0,0.07038934]
[1763136869622,0.0678,96593.0,96590.0,0.01]
[1763136870372,0.04439,96591.0,96590.0,0.01]
[1763136870587,0.02082069,96591.0,96590.0,0.01]
[1763136871121,0.20706855,96587.0,96583.0,0.07038934]
[1763136871273,0.20707177,96585.0,96583.0,0.07038934]
[1763136871474,0.20706699,96588.0,96583.0,0.07038934]
[1763136871673,0.02082069,96591.0,96583.0,0.07038934]
[1763136872812,0.03331,96584.0,96582.0,0.00013566]
[1763136874008,0.03331,96592.0,96582.0,0.00013566]
[1763136874216,0.20705862,96591.0,96590.0,0.01]
[1763136874439,0.20705862,96591.0,96582.0,0.00013566]
[1763136874440,0.20706688,96588.0,96582.0,0.00013566]
[1763136874666,0.04455,96583.0,96582.0,0.00013566]
[1763136875104,0.03331,96595.0,96582.0,0.00013566]
[1763136875303,0.02588206,96592.0,96590.0,0.01]
[1763136875734,0.04455,96591.0,96590.0,0.01]
[1763136875968,0.27749094,96591.0,96590.0,0.01]
[1763136876194,0.04455,96591.0,96590.0,0.01]
[1763136876409,0.07043232,96591.0,96590.0,0.01]
[1763136876966,0.07143232,96591.0,96590.0,0.01]
[1763136877304,0.07243232,96591.0,96590.0,0.01]
[1763136877510,0.002,96591.0,96590.0,0.01]
[1763136877738,0.04655,96591.0,96590.0,0.01]
[1763136878568,0.002,96591.0,96582.0,0.01684105]
[1763136878952,0.002,96591.0,96590.0,0.02029]
[1763136879333,0.0678,96596.0,96590.0,0.02029]
[1763136879586,0.02588125,96595.0,96590.0,0.02029]
[1763136880014,0.01618632,96595.0,96590.0,0.02029]
[1763136881039,6.198e-05,96602.0,96591.0,0.2804]
[1763136881217,6.198e-05,96602.0,96601.0,0.0371]
[1763136881621,6.198e-05,96602.0,96597.0,0.0678]
[1763136882910,6.198e-05,96602.0,96597.0,0.0688]
[1763136883301,6.198e-05,96602.0,96597.0,0.0698]
[1763136884960,6.198e-05,96602.0,96600.0,0.01]
[1763136885335,0.04455,96601.0,96600.0,0.01]
[1763136885533,6.198e-05,96602.0,96600.0,0.01]
[1763136885952,6.198e-05,96602.0,96597.0,0.001]
[1763136886300,6.198e-05,96602.0,96600.0,0.01]
[1763136886502,0.39764,96583.0,96546.0,0.01855]
[1763136886615,0.53011223,96566.0,96546.0,0.01855]
[1763136886820,0.53011223,96566.0,96514.0,0.10479654]
[1763136886821,0.64255581,96566.0,96531.0,0.0084]
[1763136887020,0.68597455,96566.0,96533.0,0.02169]
[1763136887658,0.68597455,96566.0,96534.0,0.0156605]
[1763136887856,0.68597455,96566.0,96540.0,0.36578185]
[1763136888098,0.68597455,96566.0,96533.0,0.02169]
[1763136888333,0.323,96559.0,96550.0,0.00973304]
[1763136888511,0.323,96557.0,96550.0,0.00973304]
[1763136888719,0.323,96557.0,96522.0,0.04024]
[1763136888720,0.07786,96551.0,96522.0,0.04024]
[1763136888925,0.07786,96551.0,96550.0,0.00973304]
[1763136889071,0.14566,96551.0,96550.0,0.00973304]
[1763136889507,0.03331,96551.0,96550.0,0.00973304]
[1763136889709,9.358e-05,96566.0,96560.0,0.00973304]
[1763136890163,0.01035625,96560.0,96540.0,0.00900304]
[1763136890364,0.03431,96551.0,96540.0,0.37478489]
[1763136890601,0.001,96551.0,96541.0,0.02071658]
[1763136890758,0.0678,96570.0,96550.0,0.03728304]
[1763136890941,0.0678,96570.0,96550.0,0.39406185]
[1763136891142,0.0678,96570.0,96556.0,0.36578185]
[1763136891324,0.0678,96570.0,96557.0,0.02071315]
[1763136891531,0.03331,96569.0,96558.0,0.02071293]
[1763136892236,0.207111,96567.0,96557.0,0.0678]
[1763136892432,0.20711188,96567.0,96557.0,0.0678]
[1763136892817,0.20712602,96560.0,96557.0,0.0678]
[1763136893044,0.2071344,96556.0,96554.0,0.10479654]
[1763136893516,0.04455,96555.0,96550.0,0.00900304]
[1763136893682,0.20714441,96551.0,96550.0,0.00900304]
[1763136893883,0.28500441,96551.0,96550.0,0.00900304]
[1763136894274,0.20716586,96541.0,96540.0,0.00900304]
[1763136894678,0.06784,96548.0,96540.0,0.00900304]
[1763136894877,0.06784,96548.0,96536.0,0.02167906]
[1763136895086,0.06784,96555.0,96538.0,0.36578185]
[1763136895284,0.06784,96555.0,96539.0,0.02071701]
[1763136895507,0.06784,96555.0,96540.0,0.0207168]
[1763136895711,0.001,96555.0,96554.0,0.02828]
[1763136895911,9.358e-05,96566.0,96546.0,0.02071551]
[1763136895912,0.27495718,96564.0,96546.0,0.02071551]
[1763136896113,0.27495718,96564.0,96560.0,0.00900304]
[1763136896288,0.06784,96564.0,96560.0,0.00900304]
[1763136896478,0.20712028,96563.0,96560.0,0.00900304]
[1763136896680,0.20712225,96562.0,96560.0,0.00900304]
[1763136896886,0.27495766,96564.0,96560.0,0.00900304]
[1763136897134,0.27495766,96564.0,96530.0,0.2]
[1763136897135,0.57359319,96537.0,96510.0,0.01855]
[1763136897349,0.71929319,96537.0,96503.0,0.01855]
[1763136898192,0.71929319,96537.0,96504.0,0.10479654]
[1763136898625,0.72129319,96537.0,96504.0,0.10479654]
[1763136899193,0.72329319,96537.0,96504.0,0.10479654]
[1763136899601,0.72129319,96537.0,96504.0,0.10479654]
[1763136899804,0.72329319,96537.0,96504.0,0.10479654]
[1763136900407,0.72329319,96537.0,96505.0,0.0174079]
[1763136900588,0.72329319,96537.0,96504.0,0.10479654]
[1763136900948,0.28903445,96537.0,96523.0,0.00681]
[1763136901241,0.36031,96537.0,96523.0,0.00681]
[1763136901460,0.07184,96537.0,96523.0,0.00681]
[1763136901602,0.27701445,96537.0,96523.0,0.00681]
[1763136901806,0.06984,96537.0,96523.0,0.00681]
[1763136902031,0.06884,96537.0,96523.0,0.00681]
[1763136902232,0.001,96537.0,96523.0,0.00681]
[1763136902411,0.002,96537.0,96523.0,0.00681]
[1763136902617,0.04508,96537.0,96523.0,0.00681]
[1763136903279,0.04408,96537.0,96523.0,0.00681]
[1763136903515,0.04508,96537.0,96523.0,0.00681]
[1763136904062,0.04508,96537.0,96520.0,0.00681]
[1763136904264,0.38595468,96537.0,96504.0,0.10479654]
[1763136904523,0.36708,96537.0,96504.0,0.10479654]
[1763136904693,0.43592,96537.0,96523.0,0.00681]
[1763136904894,0.43592,96537.0,96505.0,0.01595402]
[1763136905094,0.43592,96537.0,96504.0,0.13988654]
[1763136905436,0.43592,96537.0,96522.0,0.00681]
[1763136905635,0.06984,96537.0,96522.0,0.00681]
[1763136905870,0.02087468,96537.0,96536.0,0.15076141]
[1763136906049,0.002,96537.0,96536.0,0.15076141]
[1763136906460,0.002,96537.0,96536.0,0.00096141]
[1763136906619,0.02087468,96537.0,96536.0,0.00096141]
[1763136907622,0.002,96537.0,96536.0,0.00096141]
[1763136907977,0.02087468,96537.0,96536.0,0.00096141]
[1763136908759,0.002,96537.0,96536.0,0.00096141]
[1763136909089,0.02087468,96537.0,96536.0,0.00096141]
[1763136909294,0.06204468,96537.0,96536.0,0.00096141]
[1763136909600,0.38504468,96537.0,96536.0,0.00096141]
[1763136909798,0.36617,96537.0,96536.0,0.00096141]
[1763136910101,0.36617,96537.0,96536.0,0.00100141]
[1763136911013,0.36617,96537.0,96536.0,0.00104141]
[1763136911224,0.04317,96537.0,96536.0,0.00104141]
[1763136911443,0.06984,96537.0,96536.0,0.00104141]
[1763136911579,0.11101,96537.0,96536.0,0.00108141]
[1763136911781,0.12988468,96537.0,96536.0,0.00108141]
[1763136912208,0.33705913,96537.0,96536.0,0.00108141]
[1763136912406,0.11101,96537.0,96536.0,0.00108141]
[1763136912841,0.002,96537.0,96536.0,0.00108141]
[1763136913011,0.002,96537.0,96536.0,0.03441141]
[1763136914265,0.001,96537.0,96536.0,0.03441141]
[1763136914478,0.001,96537.0,96536.0,0.00108141]
[1763136915157,0.01887468,96543.0,96536.0,0.00108141]
[1763136915383,0.01887468,96549.0,96536.0,0.00108141]
[1763136915898,0.06784,96551.0,96536.0,0.00108141]
[1763136916104,0.06784,96555.0,96537.0,0.03333]
[1763136916325,0.01887468,96554.0,96537.0,0.03333]
[1763136916764,0.06784,96555.0,96537.0,0.03333]
[1763136916905,0.01887468,96554.0,96537.0,0.03333]
[1763136917113,0.01887468,96554.0,96536.0,0.00108141]
[1763136917327,0.22601275,96554.0,96536.0,0.00108141]
[1763136917782,0.01611412,96553.0,96536.0,0.00108141]
[1763136918753,0.01887468,96554.0,96536.0,0.00108141]
[1763136918952,0.20715836,96545.0,96536.0,0.00108141]
[1763136919268,0.28909479,96554.0,96536.0,0.00108141]
[1763136919269,0.01887468,96544.0,96536.0,0.00108141]
[1763136919468,0.03208,96550.0,96536.0,0.00108141]
[1763136919668,0.01887468,96549.0,96536.0,0.00108141]